bitfinex/quotes_BTCUSD_20241205
["timestamp","ask_amount","ask_price","bid_price","bid_amount"]
[1733377536919,0.0005902,102080.0,102060.0,0.088178]
[1733377537132,0.391838,102090.0,102060.0,0.058784]
[1733377537353,0.49151405,102090.0,102060.0,0.0593742]
[1733377537800,0.195928,102080.0,102060.0,0.0299822]
[1733377538018,0.35930943,102070.0,102060.0,0.0005902]
[1733377538457,0.35930943,102070.0,102060.0,0.0299842]
[1733377541447,0.0807,102070.0,102060.0,0.0005902]
[1733377541890,0.0017374,102080.0,102060.0,0.0299842]
[1733377542105,0.526621,102090.0,102060.0,0.0005902]
[1733377542325,0.391867,102080.0,102060.0,0.0005902]
[1733377542580,0.195928,102080.0,102060.0,0.0005902]
[1733377542801,0.195928,102080.0,102060.0,0.0299842]
[1733377543036,0.85596253,102090.0,102060.0,0.0299842]
[1733377543247,0.729828,102080.0,102060.0,0.0299842]
[1733377543683,0.5339,102070.0,102060.0,0.0005902]
[1733377544649,0.5339,102070.0,102060.0,0.0299842]
[1733377547184,0.3579,102070.0,102060.0,0.0299842]
[1733377548487,0.4888,102070.0,102060.0,0.0005902]
[1733377548703,0.4411,102070.0,102060.0,0.0005902]
[1733377548980,0.3579,102070.0,102060.0,0.0299842]
[1733377549198,0.3579,102070.0,102060.0,0.12966025]
[1733377549409,0.3579,102080.0,102060.0,0.15905425]
[1733377549633,0.3579,102080.0,102060.0,0.0299822]
[1733377549841,0.65351305,102080.0,102060.0,0.0005902]
[1733377550051,0.84945205,102080.0,102060.0,0.0005902]
[1733377550487,0.84945205,102080.0,102060.0,0.0299842]
[1733377550705,0.3579,102080.0,102060.0,0.0593782]
[1733377551136,0.3579,102080.0,102060.0,0.0602469]
[1733377551356,0.3579,102070.0,102060.0,0.0602449]
[1733377552477,0.3579,102070.0,102060.0,0.0014589]
[1733377552706,0.3579,102070.0,102060.0,0.0308529]
[1733377552922,0.1819,102070.0,102060.0,0.0308529]
[1733377553582,0.1819,102070.0,102050.0,0.029396]
[1733377553802,0.1824902,102070.0,102060.0,0.029394]
[1733377554466,0.2606902,102070.0,102060.0,0.029394]
[1733377554738,0.2606902,102070.0,102050.0,0.058789]
[1733377555404,0.3606902,102070.0,102060.0,0.029394]
[1733377555623,0.4070902,102070.0,102050.0,0.029395]
[1733377555840,0.1,102060.0,102050.0,0.029397]
[1733377557106,0.2310902,102070.0,102050.0,0.058794]
[1733377557575,0.2310902,102070.0,102050.0,0.088191]
[1733377557825,0.4270392,102070.0,102050.0,0.058794]
[1733377558691,0.4270392,102070.0,102050.0,0.029397]
[1733377558898,0.2310902,102070.0,102050.0,0.058792]
[1733377559352,0.4270362,102070.0,102050.0,0.029395]
[1733377560019,0.6229822,102070.0,102050.0,0.029395]
[1733377560463,0.6229822,102070.0,102030.0,0.029402]
[1733377560683,0.4270362,102070.0,102030.0,0.029402]
[1733377560904,0.4270362,102070.0,102050.0,0.029397]
[1733377561559,0.6229972,102070.0,102040.0,0.15847205]
[1733377561846,0.6229972,102070.0,102040.0,0.12907405]
[1733377562059,0.4469972,102070.0,102040.0,0.15847105]
[1733377562273,0.2510362,102070.0,102050.0,0.029397]
[1733377562758,0.0550902,102070.0,102050.0,0.058792]
[1733377562976,0.2510342,102070.0,102050.0,0.029395]
[1733377563627,0.4469782,102070.0,102050.0,0.029397]
[1733377564494,0.2510342,102070.0,102050.0,0.029397]
[1733377564957,0.4487266,102070.0,102050.0,0.029397]
[1733377565645,0.28173473,102070.0,102050.0,0.039195]
[1733377565880,0.28173473,102070.0,102050.0,0.019597]
[1733377566342,0.81563473,102070.0,102050.0,0.019597]
[1733377566590,1.01158873,102070.0,102040.0,0.13974075]
[1733377566803,1.01158973,102070.0,102050.0,0.019597]
[1733377567021,0.83558973,102070.0,102050.0,0.019597]
[1733377567253,0.95651053,102070.0,102050.0,0.01732427]
[1733377567682,0.76055553,102070.0,102050.0,0.01732427]
[1733377567898,0.95649953,102070.0,102050.0,0.01732427]
[1733377568136,0.76054453,102070.0,102040.0,0.12014275]
[1733377568399,0.191274,102060.0,102040.0,0.13974275]
[1733377568634,0.387252,102060.0,102040.0,0.10054475]
[1733377568845,0.384952,102060.0,102040.0,0.12014475]
[1733377569079,0.188974,102060.0,102040.0,0.13974375]
[1733377569308,0.42260053,102070.0,102040.0,0.12014375]
[1733377569540,0.195967,102060.0,102040.0,0.12014375]
[1733377569760,0.195967,102060.0,102040.0,0.13974275]
[1733377570213,0.50360153,102070.0,102040.0,0.12014375]
[1733377570423,0.50360153,102070.0,102040.0,0.13974275]
[1733377570635,0.30764453,102070.0,102040.0,0.12014375]
[1733377570858,0.50359953,102070.0,102050.0,0.019597]
[1733377571071,0.50359953,102070.0,102050.0,0.019598]
[1733377571302,0.50359953,102070.0,102040.0,0.12014275]
[1733377571303,0.30764453,102070.0,102040.0,0.12014275]
[1733377571526,0.195963,102060.0,102040.0,0.13974175]
[1733377572043,0.69955853,102070.0,102040.0,0.13974175]
[1733377572272,0.276955,102070.0,102040.0,0.13974175]
[1733377572482,0.472913,102070.0,102040.0,0.15934075]
[1733377572684,0.50220506,102070.0,102040.0,0.15934075]
[1733377572922,0.12583517,102050.0,102040.0,0.10054475]
[1733377573163,0.65116109,102050.0,102040.0,0.0008687]
[1733377573376,0.54899322,102050.0,102040.0,0.0008687]
[1733377573854,0.64899322,102050.0,102040.0,0.0008687]
[1733377574063,0.54937417,102020.0,102010.0,0.023]
[1733377574282,0.54905022,102020.0,102010.0,0.023]
[1733377574761,0.54905022,102020.0,102010.0,0.01393858]
[1733377574983,0.277859,102010.0,102000.0,0.15]
[1733377575199,0.445278,102000.0,101990.0,0.0153524]
[1733377575410,0.57078922,102000.0,101990.0,0.0159426]
[1733377575885,0.47078922,102000.0,101990.0,0.0159426]
[1733377576320,0.47078922,102000.0,101990.0,0.0034696]
[1733377576797,0.57078922,102000.0,101990.0,0.0034696]
[1733377577260,0.32551122,102000.0,101990.0,0.0034696]
[1733377577509,0.52158922,102000.0,101990.0,0.0034696]
[1733377577727,0.42158922,102000.0,101990.0,0.0034696]
[1733377578415,0.5339,101970.0,101940.0,0.029429]
[1733377578628,0.730037,101970.0,101940.0,0.15853105]
[1733377578871,0.730037,101970.0,101940.0,0.18795805]
[1733377579070,0.730037,101970.0,101940.0,0.18795605]
[1733377579281,0.5339,101950.0,101930.0,0.0392]
[1733377579494,0.730074,101950.0,101930.0,0.068631]
[1733377579767,0.730074,101950.0,101930.0,0.029431]
[1733377579995,0.5339,101940.0,101920.0,0.10473053]
[1733377580217,0.730093,101940.0,101920.0,0.029432]
[1733377580428,0.9263,101940.0,101910.0,0.058872]
[1733377580631,0.09967605,101930.0,101900.0,0.0452]
[1733377580840,0.39460953,101930.0,101900.0,0.17431405]
[1733377581126,0.73068211,101940.0,101910.0,0.029435]
[1733377581337,0.19838372,101930.0,101910.0,0.029435]
[1733377581580,0.92849772,101930.0,101910.0,0.029435]
[1733377581793,0.5339,101930.0,101910.0,0.029437]
[1733377582021,0.5339,101910.0,101900.0,0.029438]
[1733377582270,0.65280205,101930.0,101890.0,0.12650577]
[1733377582477,0.65280205,101930.0,101910.0,0.029437]
[1733377582689,0.29807892,101920.0,101900.0,0.029438]
[1733377582903,0.10184692,101920.0,101900.0,0.029438]
[1733377583119,0.29807892,101920.0,101900.0,0.029438]
[1733377583342,0.10184692,101920.0,101900.0,0.029438]
[1733377583562,0.3569,101910.0,101900.0,0.029438]
[1733377583792,0.3569,101910.0,101890.0,0.13302877]
[1733377584040,0.3569,101910.0,101890.0,0.13281227]
[1733377584275,0.3569,101910.0,101900.0,0.02944]
[1733377585385,0.392435,101930.0,101900.0,0.02944]
[1733377585386,0.749335,101930.0,101900.0,0.02944]
[1733377585606,0.45657605,101930.0,101900.0,0.068693]
[1733377585810,0.00058911,101940.0,101930.0,0.039242]
[1733377586229,0.00058911,101940.0,101920.0,0.078486]
[1733377586454,0.00058911,101940.0,101930.0,0.039242]
[1733377586663,0.00058911,101940.0,101920.0,0.039243]
[1733377586884,0.00058911,101940.0,101920.0,0.078486]
[1733377587103,0.37666511,101950.0,101920.0,0.078489]
[1733377587423,0.47634116,101950.0,101920.0,0.03983211]
[1733377587545,0.28016516,101950.0,101930.0,0.039239]
[1733377587776,0.28016516,101950.0,101940.0,0.039238]
[1733377587987,0.18048911,101950.0,101940.0,0.039238]
[1733377588196,0.18265943,101950.0,101930.0,0.078479]
[1733377588407,0.17959401,101950.0,101930.0,0.117721]
[1733377588635,0.47544506,101950.0,101930.0,0.078479]
[1733377588845,0.27709974,101950.0,101930.0,0.078479]
[1733377589068,0.17742369,101950.0,101940.0,0.039238]
[1733377589278,0.17959401,101950.0,101940.0,0.039238]
[1733377590389,0.00217027,101950.0,101940.0,0.039238]
[1733377591725,0.00217027,101950.0,101900.0,0.168952]
[1733377591726,0.18582051,101910.0,101900.0,0.168952]
[1733377591937,0.18582051,101910.0,101900.0,0.26862805]
[1733377592154,0.00882051,101910.0,101900.0,0.26862805]
[1733377592359,0.00882051,101910.0,101900.0,0.13892805]
[1733377592601,0.00882051,101910.0,101900.0,0.039252]
[1733377593030,0.00940926,101910.0,101880.0,0.03187551]
[1733377593254,0.196271,101900.0,101860.0,0.00172867]
[1733377593467,0.19425646,101910.0,101890.0,0.039257]
[1733377593468,0.72598531,101910.0,101890.0,0.039257]
[1733377593910,0.29594705,101900.0,101880.0,0.039259]
[1733377594122,0.68294733,101900.0,101870.0,0.039265]
[1733377594361,0.68294733,101900.0,101880.0,0.039258]
[1733377594362,0.5339,101900.0,101880.0,0.039258]
[1733377594574,0.00940926,101910.0,101890.0,0.039258]
[1733377594778,0.01158041,101910.0,101890.0,0.039258]
[1733377595036,0.50376046,101910.0,101880.0,0.078518]
[1733377595289,0.50377246,101910.0,101880.0,0.078518]
[1733377595496,0.11125646,101910.0,101880.0,0.039259]
[1733377595719,0.50375946,101910.0,101890.0,0.029442]
[1733377595948,0.196272,101900.0,101880.0,0.029446]
[1733377596168,0.19844333,101900.0,101880.0,0.029446]
[1733377596844,0.00217133,101900.0,101880.0,0.05889]
[1733377597070,0.75944104,101920.0,101880.0,0.15856605]
[1733377597313,0.5339,101920.0,101910.0,0.029437]
[1733377597533,0.82980805,101920.0,101890.0,0.06061909]
[1733377597744,0.82980805,101920.0,101900.0,0.02944]
[1733377597957,1.02605205,101920.0,101890.0,0.0311778]
[1733377598163,0.82980805,101920.0,101900.0,0.02944]
[1733377598371,1.02605405,101920.0,101890.0,0.0606178]
[1733377598601,0.00172574,101910.0,101900.0,0.02944]
[1733377599260,0.00172574,101910.0,101890.0,0.0606178]
[1733377599503,0.73089174,101910.0,101880.0,0.08958293]
[1733377599718,0.63430179,101910.0,101880.0,0.02895789]
[1733377599941,0.49224205,101900.0,101880.0,0.02895789]
[1733377600193,0.19629,101890.0,101880.0,0.02895789]
[1733377600405,0.19629,101890.0,101860.0,0.00141698]
[1733377600406,0.196328,101870.0,101860.0,0.00141698]
[1733377600620,0.32216317,101870.0,101860.0,0.00141698]
[1733377600834,0.42183922,101870.0,101860.0,0.00141698]
[1733377601040,0.52183922,101870.0,101860.0,0.00141698]
[1733377601243,0.730247,101860.0,101830.0,0.06052793]
[1733377601477,0.82992305,101860.0,101840.0,0.029457]
[1733377601703,0.82992405,101860.0,101830.0,0.06052593]
[1733377601916,0.88491122,101850.0,101810.0,0.00031169]
[1733377602130,0.600453,101860.0,101830.0,0.029458]
[1733377602343,0.22551122,101840.0,101810.0,0.00031169]
[1733377602554,0.40582574,101830.0,101820.0,0.029463]
[1733377602826,0.600505,101830.0,101810.0,0.03000491]
[1733377603052,0.4041,101830.0,101810.0,0.05893]
[1733377603274,0.40668802,101830.0,101810.0,0.05893]
[1733377603477,0.40668802,101830.0,101820.0,0.029463]
[1733377604352,0.4041,101820.0,101800.0,0.00433919]
[1733377604574,0.70020105,101820.0,101800.0,0.00433919]
[1733377605013,0.89664205,101820.0,101800.0,0.00433919]
[1733377605235,0.18858511,101810.0,101800.0,0.00433919]
[1733377605447,0.89664405,101820.0,101800.0,0.00433919]
[1733377605865,0.67969902,101830.0,101800.0,0.04362819]
[1733377606071,0.00258802,101830.0,101800.0,0.14504293]
[1733377606313,0.00258802,101830.0,101820.0,0.039285]
[1733377606554,0.196381,101850.0,101820.0,0.07857]
[1733377606759,0.196386,101840.0,101820.0,0.03987302]
[1733377606975,0.29605605,101850.0,101820.0,0.03987002]
[1733377607204,0.49243605,101850.0,101820.0,0.03987002]
[1733377607411,0.29606205,101840.0,101820.0,0.00058802]
[1733377608105,0.29606205,101840.0,101820.0,0.03987202]
[1733377608321,0.09967605,101840.0,101820.0,0.03987202]
[1733377608554,0.09967605,101840.0,101820.0,0.07915602]
[1733377608968,0.196388,101840.0,101820.0,0.03987202]
[1733377609221,0.29606405,101840.0,101820.0,0.00058802]
[1733377609457,0.49246605,101840.0,101820.0,0.03987202]
[1733377609888,0.29606405,101840.0,101820.0,0.03987202]
[1733377610129,0.22484456,101850.0,101810.0,0.039287]
[1733377610130,0.02846556,101850.0,101810.0,0.00173838]
[1733377610329,0.5339,101870.0,101850.0,0.039273]
[1733377610536,0.83049244,101870.0,101850.0,0.039273]
[1733377610763,1.06293453,101870.0,101840.0,0.078548]
[1733377610940,1.06293453,101870.0,101830.0,0.078955]
[1733377610941,0.29603505,101860.0,101830.0,0.078955]
[1733377611191,0.49239605,101860.0,101830.0,0.039677]
[1733377611398,0.68876205,101860.0,101830.0,0.078955]
[1733377611606,0.59239605,101860.0,101830.0,0.078957]
[1733377611818,0.196379,101850.0,101830.0,0.039677]
[1733377612029,0.196386,101840.0,101830.0,0.0004]
[1733377612459,0.729479,101850.0,101830.0,0.0004]
[1733377612687,0.82915505,101850.0,101830.0,0.078962]
[1733377612996,0.63277605,101850.0,101830.0,0.078959]
[1733377613182,0.09967605,101850.0,101840.0,0.039277]
[1733377613400,0.552459,101860.0,101840.0,0.039277]
[1733377613401,0.552459,101860.0,101840.0,0.078554]
[1733377613618,0.84849505,101860.0,101830.0,0.078956]
[1733377613855,0.09967605,101850.0,101830.0,0.039678]
[1733377614075,0.29604305,101850.0,101830.0,0.039678]
[1733377614313,0.49242305,101850.0,101830.0,0.0004]
[1733377614522,0.196386,101840.0,101830.0,0.0012682]
[1733377614728,0.29606205,101840.0,101830.0,0.0012682]
[1733377617129,0.09967605,101840.0,101830.0,0.0012682]
[1733377617356,0.29606205,101840.0,101830.0,0.0012682]
[1733377617561,0.8712724,101840.0,101830.0,0.0012682]
[1733377618417,0.5151724,101840.0,101830.0,0.0012682]
[1733377618877,1.0490724,101840.0,101830.0,0.0012682]
[1733377619094,1.1490724,101840.0,101830.0,0.0012682]
[1733377619303,0.6151724,101840.0,101830.0,0.0012682]
[1733377620404,0.5151724,101840.0,101830.0,0.0012682]
[1733377620736,0.03671035,101840.0,101830.0,0.0012682]
[1733377620950,0.196386,101840.0,101830.0,0.0012682]
[1733377621359,0.392747,101850.0,101830.0,0.0012682]
[1733377621562,0.29606205,101840.0,101830.0,0.0012682]
[1733377621736,0.196386,101840.0,101830.0,0.0012682]
[1733377621942,0.23252312,101850.0,101830.0,0.0012682]
[1733377622142,0.33219917,101850.0,101830.0,0.0012682]
[1733377622346,0.29606205,101840.0,101830.0,0.0012682]
[1733377624488,0.23252312,101850.0,101830.0,0.0012682]
[1733377624709,0.52858317,101850.0,101830.0,0.0012682]
[1733377625155,0.72496217,101850.0,101830.0,0.0012682]
[1733377625355,0.52857817,101850.0,101830.0,0.0307282]
[1733377625599,0.23426012,101850.0,101830.0,0.0012682]
[1733377625822,0.23426012,101850.0,101830.0,0.0798272]
[1733377626452,0.27351839,101870.0,101840.0,0.039277]
[1733377626735,0.18979441,101930.0,101880.0,0.1]
[1733377626941,0.09967605,101920.0,101870.0,0.039265]
[1733377627161,0.29594105,101910.0,101860.0,0.139268]
[1733377627371,0.730205,101890.0,101850.0,0.1301]
[1733377627544,0.196343,101870.0,101850.0,0.1301]
[1733377627745,0.195343,101870.0,101840.0,0.023]
[1733377627998,0.29602305,101860.0,101850.0,0.00058839]
[1733377628191,0.195343,101870.0,101850.0,0.00058839]
[1733377628409,0.29501905,101870.0,101850.0,0.00058839]
[1733377628651,0.49136305,101870.0,101850.0,0.00058839]
[1733377628838,0.29602305,101860.0,101850.0,0.00058839]
[1733377629076,0.48581746,101860.0,101850.0,0.00058839]
[1733377629557,0.29602305,101860.0,101850.0,0.00058839]
[1733377629763,1.98581746,101860.0,101850.0,0.00058839]
[1733377630214,1.79602305,101860.0,101850.0,0.00058839]
[1733377630430,1.89394227,101860.0,101850.0,0.00058839]
[1733377630634,1.79602305,101860.0,101850.0,0.00058839]
[1733377631074,2.32992305,101860.0,101850.0,0.00058839]
[1733377631466,2.35292305,101860.0,101850.0,0.00058839]
[1733377632178,2.15657605,101860.0,101850.0,0.00058839]
[1733377632380,2.35264781,101860.0,101850.0,0.00058839]
[1733377632730,0.85292305,101860.0,101850.0,0.00058839]
[1733377633089,0.31902305,101860.0,101850.0,0.00058839]
[1733377636876,0.023,101860.0,101850.0,0.00058839]
[1733377637076,1.075585,101870.0,101850.0,0.00058839]
[1733377637281,0.392696,101860.0,101830.0,0.19091859]
[1733377637477,0.198084,101860.0,101830.0,0.29059464]
[1733377637641,0.001737,101860.0,101830.0,0.39059464]
[1733377637845,0.003737,101860.0,101840.0,0.43107205]
[1733377638058,0.003737,101860.0,101840.0,0.28197605]
[1733377638268,0.001737,101860.0,101840.0,0.38197605]
[1733377638521,0.001737,101860.0,101840.0,0.43107205]
[1733377638724,0.003737,101860.0,101840.0,0.48016805]
[1733377638942,0.003737,101860.0,101840.0,0.43107205]
[1733377639148,0.001737,101860.0,101840.0,0.48016705]
[1733377639352,0.003737,101860.0,101850.0,0.249091]
[1733377639565,0.003737,101860.0,101850.0,0.34876705]
[1733377639790,0.003737,101860.0,101850.0,0.18706853]
[1733377639999,0.003737,101860.0,101850.0,0.18880607]
[1733377640209,0.003737,101860.0,101850.0,0.23789707]
[1733377640405,0.003737,101860.0,101850.0,0.23615953]
[1733377640655,0.003737,101860.0,101850.0,0.28275953]
[1733377640863,0.15058839,101870.0,101860.0,0.13647848]
[1733377641068,0.15058839,101870.0,101860.0,0.23615453]
[1733377641482,0.00058839,101870.0,101860.0,0.31845453]
[1733377641860,0.392482,101920.0,101890.0,0.049071]
[1733377642034,0.29592305,101920.0,101890.0,0.049071]
[1733377642272,0.49216805,101920.0,101890.0,0.049071]
[1733377642471,0.68841605,101920.0,101890.0,0.049071]
[1733377642711,0.68841805,101920.0,101890.0,0.049071]
[1733377642921,0.49216805,101920.0,101890.0,0.049071]
[1733377643136,0.49216605,101920.0,101890.0,0.049071]
[1733377643358,0.196252,101910.0,101880.0,0.18553848]
[1733377643598,0.392521,101910.0,101880.0,0.23614153]
[1733377643821,0.09967605,101900.0,101860.0,0.36688087]
[1733377644042,0.196301,101890.0,101860.0,0.51564292]
[1733377644259,0.196321,101880.0,101860.0,0.19718839]
[1733377644486,0.29600405,101870.0,101860.0,0.19718839]
[1733377644688,0.29600405,101870.0,101860.0,0.15058839]
[1733377644922,0.392645,101880.0,101860.0,0.15058839]
[1733377645169,0.392593,101890.0,101860.0,0.15058839]
[1733377645371,0.196282,101900.0,101860.0,0.38674292]
[1733377645579,0.29595805,101900.0,101870.0,0.107694]
[1733377645793,0.49224105,101900.0,101870.0,0.166591]
[1733377646227,0.29595805,101900.0,101870.0,0.166591]
[1733377646488,0.29595805,101900.0,101870.0,0.248988]
[1733377646683,0.39253,101910.0,101870.0,0.37716253]
[1733377646887,0.49220905,101910.0,101880.0,0.058889]
[1733377647035,0.09967605,101910.0,101880.0,0.117781]
[1733377647237,0.001,101900.0,101880.0,0.117781]
[1733377647937,0.196238,101920.0,101880.0,0.15856505]
[1733377648110,0.09967605,101920.0,101890.0,0.058882]
[1733377648315,0.001,101910.0,101900.0,0.058881]
[1733377648745,0.392447,101930.0,101900.0,0.117762]
[1733377648746,0.19622,101930.0,101900.0,0.117762]
[1733377648895,0.49212005,101930.0,101900.0,0.058881]
[1733377649283,0.196234,101920.0,101890.0,0.20515748]
[1733377649498,0.196234,101920.0,101890.0,0.30500806]
[1733377649713,0.196234,101920.0,101890.0,0.24612606]
[1733377649941,0.196234,101920.0,101890.0,0.21761958]
[1733377650165,0.49215305,101920.0,101890.0,0.20533601]
[1733377650369,0.50899863,101950.0,101910.0,0.19296248]
[1733377650588,0.49044868,101950.0,101910.0,0.26411805]
[1733377650805,0.196213,101930.0,101910.0,0.0467]
[1733377651019,0.29588905,101930.0,101910.0,0.0467]
[1733377651254,0.09967605,101930.0,101910.0,0.105575]
[1733377651447,0.196205,101940.0,101910.0,0.0467]
[1733377651582,0.49208805,101940.0,101910.0,0.0467]
[1733377651781,0.39077363,101950.0,101920.0,0.32333753]
[1733377651969,0.346181,101950.0,101920.0,0.38220253]
[1733377652170,0.002,101930.0,101920.0,0.32333353]
[1733377653258,0.002,101930.0,101920.0,0.61654854]
[1733377653464,0.15,101950.0,101940.0,0.058858]
[1733377653587,0.151,101950.0,101940.0,0.20633405]
[1733377654239,0.15,101950.0,101940.0,0.20633405]
[1733377654678,0.15,101950.0,101940.0,0.20650858]
[1733377654850,0.346174,101950.0,101940.0,0.04797453]
[1733377655090,0.15,101950.0,101940.0,0.00017453]
[1733377655328,0.151,101950.0,101940.0,0.00017453]
[1733377655552,0.347174,101950.0,101940.0,0.00017453]
[1733377655887,0.151,101950.0,101940.0,0.00017453]
[1733377656262,0.151,101950.0,101940.0,0.24610106]
[1733377656661,0.15,101950.0,101940.0,0.24610106]
[1733377657176,0.173602,101980.0,101950.0,0.14623948]
[1733377657359,0.20992598,101980.0,101950.0,0.35096253]
[1733377657659,0.20992598,101980.0,101950.0,0.40981053]
[1733377657978,0.03632398,101980.0,101970.0,0.10784]
[1733377658202,0.0296344,102000.0,101990.0,0.14622148]
[1733377658394,0.001737,102010.0,102000.0,0.08739248]
[1733377658680,0.001737,102010.0,102000.0,0.48201861]
[1733377658921,0.001737,102010.0,102000.0,0.24589153]
[1733377659126,0.001737,102010.0,102000.0,0.18706853]
[1733377659549,0.00232648,102010.0,102000.0,0.18706853]
[1733377659758,0.19839948,102010.0,101990.0,0.2742]
[1733377659957,0.00232648,102010.0,102000.0,0.09967605]
[1733377660116,0.00232648,102010.0,102000.0,0.058823]
[1733377660280,0.00232648,102010.0,102000.0,0.53910654]
[1733377660479,0.00232648,102010.0,102000.0,0.24589153]
[1733377660699,0.00232648,102010.0,102000.0,0.53910654]
[1733377660908,0.00332648,102010.0,102000.0,0.53910654]
[1733377661135,0.0017364,102020.0,102010.0,0.08739248]
[1733377661338,0.0017364,102020.0,102010.0,0.54083539]
[1733377661550,0.0017364,102020.0,102010.0,0.53910054]
[1733377662207,0.3936884,102060.0,102010.0,0.53910054]
[1733377662208,0.0017374,102080.0,102040.0,0.38060749]
[1733377662412,0.1976824,102070.0,102050.0,0.18706853]
[1733377662643,0.1976824,102070.0,102040.0,0.18706853]
[1733377662845,0.195965,102060.0,102030.0,0.08739248]
[1733377663047,0.391942,102060.0,102030.0,0.18706853]
[1733377663287,0.195965,102060.0,102030.0,0.18706853]
[1733377663486,0.3936464,102070.0,102040.0,0.24586853]
[1733377663699,0.3936464,102070.0,102020.0,0.17872346]
[1733377663700,0.195964,102060.0,102020.0,0.17872346]
[1733377663955,0.195982,102050.0,102030.0,0.09967605]
[1733377664167,0.39311785,102060.0,102030.0,0.09967605]
[1733377664379,0.195984,102050.0,102030.0,0.09967605]
[1733377665285,0.19714085,102060.0,102030.0,0.15848105]
[1733377665506,0.39311785,102060.0,102030.0,0.09967605]
[1733377665729,0.195983,102050.0,102030.0,0.09967605]
[1733377666192,0.39211785,102060.0,102030.0,0.15848205]
[1733377666428,0.001,102050.0,102030.0,0.15848205]
[1733377666672,0.001,102050.0,102040.0,0.45342581]
[1733377666905,0.001,102050.0,102040.0,0.45169106]
[1733377667141,0.195892,102100.0,102050.0,0.058794]
[1733377667371,0.295881,102110.0,102060.0,0.16019512]
[1733377667589,0.1,102110.0,102060.0,0.28209412]
[1733377667820,0.1,102110.0,102070.0,0.058777]
[1733377668062,0.29587,102110.0,102080.0,0.09967605]
[1733377668304,0.52492497,102110.0,102080.0,0.09967605]
[1733377668540,0.195889,102100.0,102060.0,0.180687]
[1733377668777,0.59142805,102110.0,102070.0,0.09967605]
[1733377669118,0.59143105,102110.0,102070.0,0.09967605]
[1733377669361,0.59160726,102110.0,102070.0,0.09967605]
[1733377669598,0.391774,102100.0,102070.0,0.09967605]
[1733377669824,0.59026222,102110.0,102070.0,0.09967605]
[1733377670031,0.29604821,102110.0,102080.0,0.09967605]
[1733377670484,0.10017721,102110.0,102080.0,0.15845305]
[1733377670708,0.10117721,102110.0,102080.0,0.15845305]
[1733377670934,0.00117721,102110.0,102080.0,0.15845305]
[1733377671181,0.00017721,102110.0,102080.0,0.16018682]
[1733377671404,0.00017721,102110.0,102080.0,0.29636382]
[1733377671639,0.00017721,102110.0,102090.0,0.058769]
[1733377671861,0.00017721,102110.0,102100.0,0.15844105]
[1733377672087,0.00017721,102110.0,102100.0,0.09967605]
[1733377672359,0.00017721,102110.0,102100.0,0.15844105]
[1733377672569,0.00117721,102110.0,102100.0,0.09967605]
[1733377672791,0.00117721,102110.0,102090.0,0.047]
[1733377673029,0.003915,102140.0,102100.0,0.39289106]
[1733377673255,0.00059046,102140.0,102120.0,0.0774]
[1733377673476,0.00059046,102140.0,102130.0,0.09967605]
[1733377674395,0.00059046,102140.0,102100.0,0.139461]
[1733377674641,0.00059046,102140.0,102120.0,0.14467605]
[1733377674864,0.00059046,102140.0,102120.0,0.26390801]
[1733377675084,0.00059046,102140.0,102130.0,0.06048096]
[1733377675302,0.00059046,102140.0,102130.0,0.16015701]
[1733377675750,0.00159046,102140.0,102130.0,0.16010901]
[1733377675963,0.00332306,102140.0,102130.0,0.16010901]
[1733377676653,0.00332306,102140.0,102130.0,0.52932402]
[1733377676889,0.00332306,102140.0,102130.0,0.52763906]
[1733377677108,0.2974572,102190.0,102140.0,0.137057]
[1733377677329,0.00017713,102180.0,102150.0,0.10140861]
[1733377677546,0.00017713,102180.0,102160.0,0.0497]
[1733377677760,0.00013713,102180.0,102160.0,0.21962332]
[1733377678003,0.00013713,102180.0,102160.0,0.14937605]
[1733377678448,0.68864306,102170.0,102120.0,0.0477]
[1733377678673,0.195785,102160.0,102130.0,0.09967605]
[1733377678890,0.001,102140.0,102130.0,0.10140902]
[1733377679104,0.001,102140.0,102130.0,0.09967605]
[1733377679341,0.39157,102160.0,102130.0,0.09967605]
[1733377679556,0.195785,102160.0,102130.0,0.09967605]
[1733377679774,0.391569,102160.0,102130.0,0.09967605]
[1733377679994,0.392537,102170.0,102130.0,0.16994598]
[1733377680231,0.19595206,102160.0,102130.0,0.09967605]
[1733377680450,0.195805,102150.0,102130.0,0.09967605]
[1733377680688,0.92563206,102160.0,102130.0,0.09967605]
[1733377680918,0.72984806,102160.0,102130.0,0.10140901]
[1733377681160,0.53407706,102160.0,102130.0,0.10140901]
[1733377681392,0.53407706,102160.0,102130.0,0.09967605]
[1733377681612,0.195809,102140.0,102130.0,0.09967605]
[1733377681834,0.391631,102140.0,102120.0,0.0477]
[1733377682055,0.195809,102140.0,102120.0,0.09967605]
[1733377682283,0.19584,102130.0,102120.0,0.09967605]
[1733377682509,0.391633,102140.0,102120.0,0.09967605]
[1733377682731,0.5339,102150.0,102120.0,0.09967605]
[1733377682953,0.392632,102140.0,102120.0,0.09967605]
[1733377683194,0.68584701,102140.0,102110.0,0.0772]
[1733377683421,0.48904301,102130.0,102110.0,0.17687605]
[1733377683642,0.391669,102130.0,102110.0,0.17687605]
[1733377684858,0.391669,102130.0,102110.0,0.09967605]
[1733377685088,0.39167,102130.0,102110.0,0.09967605]
[1733377685314,0.195848,102120.0,102110.0,0.09967605]
[1733377685544,0.68488301,102130.0,102110.0,0.09967605]
[1733377685998,0.195848,102120.0,102110.0,0.09967605]
[1733377686451,0.195871,102110.0,102090.0,0.0795]
[1733377686696,0.29321501,102100.0,102090.0,0.10026651]
[1733377686920,0.195886,102100.0,102090.0,0.10026651]
[1733377687136,0.50896601,102110.0,102090.0,0.10026651]
[1733377687359,0.195886,102100.0,102090.0,0.10026651]
[1733377687759,0.29321501,102110.0,102090.0,0.10026651]
[1733377687989,0.5339,102120.0,102090.0,0.10026651]
[1733377688209,0.101,102120.0,102100.0,0.16823005]
[1733377688427,0.10159046,102120.0,102100.0,0.23678905]
[1733377688645,0.10337219,102120.0,102100.0,0.16823005]
[1733377688865,0.10237219,102120.0,102100.0,0.23678405]
[1733377689108,0.39380547,102120.0,102100.0,0.09967605]
[1733377689348,0.195887,102100.0,102070.0,0.1889564]
[1733377689575,0.00178173,102090.0,102080.0,0.09967605]
[1733377690014,0.00178173,102090.0,102070.0,0.1203774]
[1733377690236,0.00178173,102090.0,102070.0,0.15147845]
[1733377690460,0.00178173,102090.0,102070.0,0.16825105]
[1733377690679,0.00178173,102090.0,102070.0,0.23682505]